bitfinex-derivatives/quotes_ETHF0:USTF0_20260116
["timestamp","ask_amount","ask_price","bid_price","bid_amount"]
[1768569610140,0.91469687,3308.6,3307.3,0.23910687]
[1768569610341,0.91469687,3308.5,3307.3,0.23910687]
[1768569610542,0.91469687,3308.4,3307.2,0.15512149]
[1768569610848,0.18759811,3308.8,3307.2,0.00389149]
[1768569611048,1.10237897,3308.7,3307.2,0.00389149]
[1768569611250,0.91495368,3308.6,3307.2,0.00389149]
[1768569614756,2.32306126,3308.6,3307.2,0.00389149]
[1768569614947,0.91495368,3308.5,3307.2,0.00389149]
[1768569615345,1.10448417,3308.5,3307.2,0.00389149]
[1768569615543,0.91495368,3308.4,3307.2,0.00389149]
[1768569617655,1.10528448,3308.4,3307.2,0.00389149]
[1768569617952,1.10528448,3308.3,3306.8,40.8]
[1768569618152,0.91495368,3308.2,3306.8,40.8]
[1768569618756,0.91495368,3308.2,3306.8,40.80326048]
[1768569619053,1.21982878,3307.8,3306.8,0.00326048]
[1768569619254,0.91495368,3307.7,3306.8,0.00326048]
[1768569619455,1.21982878,3307.8,3306.8,0.00326048]
[1768569619653,0.91443186,3307.7,3306.8,0.00326048]
[1768569619957,0.91436871,3307.6,3306.2,40.8]
[1768569620160,1.21982878,3307.8,3306.2,40.8]
[1768569620355,0.91398844,3307.7,3306.2,40.8]
[1768569620556,1.21982878,3307.8,3306.2,40.8]
[1768569620557,0.91398844,3307.6,3306.2,40.8]
[1768569620856,0.00320296,3307.6,3306.2,40.80351229]
[1768569621455,0.00320296,3307.6,3306.2,0.00351229]
[1768569621654,0.91369197,3307.5,3306.2,0.00351229]
[1768569621850,0.00320296,3307.6,3306.2,0.00351229]
[1768569622554,0.00320296,3307.6,3306.2,0.2285601]
[1768569624952,0.00320296,3307.6,3306.2,0.00351229]
[1768569626159,0.00320296,3307.6,3306.2,0.2285601]
[1768569638861,0.00320296,3307.6,3306.3,1.21982878]
[1768569639070,0.00320296,3307.6,3306.4,0.21806523]
[1768569651175,0.00320296,3307.6,3306.4,0.36933523]
[1768569651478,0.00320296,3307.6,3306.5,0.22049183]
[1768569652168,4.713,3308.4,3306.5,0.22049183]
[1768569652372,0.91516606,3308.3,3306.5,0.22049183]
[1768569652569,0.91516606,3308.2,3306.5,0.22049183]
[1768569652771,0.91516606,3308.1,3306.5,0.22049183]
[1768569652972,0.91516606,3308.0,3306.5,0.22049183]
[1768569653182,0.91516606,3307.9,3306.5,0.22049183]
[1768569653491,1.21982878,3307.0,3304.1,3.80922196]
[1768569653777,1.21982878,3306.4,3304.1,0.22049183]
[1768569653978,0.91516606,3306.3,3304.4,0.22049183]
[1768569654184,0.91516606,3306.2,3304.6,0.22049183]
[1768569654388,0.91516606,3306.1,3304.6,0.22049183]
[1768569654580,0.91516606,3306.0,3304.6,0.2241549]
[1768569654779,0.91516606,3305.9,3304.6,0.2241549]
[1768569655078,1.21982878,3306.7,3304.6,0.2241549]
[1768569655267,1.01659318,3306.6,3304.6,0.2241549]
[1768569655471,0.15125,3306.8,3304.6,0.2241549]
[1768569655472,1.01659318,3306.5,3304.6,0.2241549]
[1768569655784,1.01659318,3306.4,3304.6,0.2241549]
[1768569656079,1.01659318,3306.3,3304.6,0.2241549]
[1768569656271,1.01659318,3306.2,3304.6,0.2241549]
[1768569656472,1.01659318,3306.1,3304.6,0.2241549]
[1768569656672,0.15125,3306.8,3304.6,0.2241549]
[1768569656873,2.23579535,3306.7,3304.6,0.2241549]
[1768569657169,1.01596657,3306.6,3304.6,0.2241549]
[1768569657368,1.01596657,3306.5,3304.6,0.2241549]
[1768569657581,1.01596657,3306.4,3304.6,0.2241549]
[1768569657775,1.01596657,3306.3,3304.6,0.2241549]
[1768569657977,1.01596657,3306.2,3304.6,0.2241549]
[1768569658179,0.15125,3306.8,3304.6,0.2241549]
[1768569658484,1.01497712,3306.7,3304.6,0.2241549]
[1768569658684,1.01497712,3306.6,3304.6,0.2241549]
[1768569658983,1.01497712,3306.5,3304.6,0.2241549]
[1768569659174,1.01497712,3306.4,3304.6,0.2241549]
[1768569659376,1.01497712,3306.3,3304.6,0.2241549]
[1768569659686,1.01497712,3306.2,3304.8,0.22049183]
[1768569659888,0.15125,3306.8,3304.8,0.22049183]
[1768569660083,1.01454876,3306.7,3304.8,0.22049183]
[1768569660384,1.01454876,3306.6,3304.8,0.22049183]
[1768569660585,1.01454876,3306.5,3304.8,0.22049183]
[1768569660779,1.01454876,3306.4,3304.9,0.22049183]
[1768569660979,0.15122,3307.6,3305.4,0.22049183]
[1768569661195,1.01429011,3307.5,3305.5,0.22049183]
[1768569661380,1.01429011,3307.4,3305.6,0.22049183]
[1768569661585,1.01429011,3307.3,3305.6,0.22049183]
[1768569661785,1.01429011,3307.2,3305.6,0.22049183]
[1768569661987,1.01429011,3307.1,3305.6,0.22049183]
[1768569662186,0.15122,3307.6,3305.6,0.22049183]
[1768569662381,1.0143622,3307.5,3305.6,0.22049183]
[1768569662590,1.0143622,3307.4,3305.7,0.22049183]
[1768569662791,1.0143622,3307.3,3305.8,0.22049183]
[1768569663089,0.00310401,3308.0,3305.8,0.22049183]
[1768569663090,1.0143622,3307.2,3305.8,0.22049183]
[1768569663277,0.00310401,3308.0,3305.8,0.22049183]
[1768569663480,1.01433745,3307.9,3305.8,0.22049183]
[1768569663687,1.01433745,3307.8,3305.8,0.22049183]
[1768569663985,1.01433745,3307.7,3305.8,0.22049183]
[1768569664290,1.01433745,3307.6,3305.8,0.22049183]
[1768569664592,1.01433745,3307.5,3305.8,0.22049183]
[1768569664789,1.01433745,3307.4,3305.8,0.22049183]
[1768569664993,1.01433745,3307.3,3306.0,0.22049183]
[1768569665188,0.00310401,3308.0,3306.0,0.22049183]
[1768569665385,1.01423102,3307.9,3306.0,0.22049183]
[1768569670483,1.01423102,3307.9,3306.2,0.22049183]
[1768569672293,1.01423102,3307.8,3306.2,0.22049183]
[1768569672591,1.01423102,3307.7,3306.2,0.22049183]
[1768569672789,1.01423102,3307.6,3306.2,0.22049183]
[1768569672993,1.01423102,3307.5,3306.2,0.22049183]
[1768569673180,1.01423102,3307.4,3306.2,0.22049183]
[1768569673384,1.01423102,3307.3,3306.2,0.22049183]
[1768569673689,1.01423102,3307.2,3306.2,0.22049183]
[1768569673889,1.01423102,3307.1,3306.2,0.22049183]
[1768569674091,2.17031948,3307.9,3306.2,0.22049183]
[1768569674286,1.03264568,3307.8,3306.2,0.22049183]
[1768569674488,1.03264568,3307.7,3306.2,0.22049183]
[1768569674688,1.03264568,3307.6,3306.2,0.22049183]
[1768569674891,1.03264568,3307.5,3306.2,0.22049183]
[1768569675188,1.03264568,3307.4,3306.2,0.22049183]
[1768569675496,1.03264568,3307.3,3306.2,0.22049183]
[1768569675695,1.03264568,3307.2,3306.2,0.22049183]
[1768569675995,1.03264568,3307.1,3306.2,0.22049183]
[1768569676202,2.17031948,3307.9,3306.2,0.22049183]
[1768569676385,1.03287981,3307.8,3306.6,0.22049183]
[1768569676605,1.03287981,3307.7,3306.6,0.22049183]
[1768569676795,1.03287981,3307.6,3306.6,0.22049183]
[1768569676994,0.00310401,3308.0,3306.6,0.22049183]
[1768569677197,1.03313322,3307.9,3306.6,0.22049183]
[1768569677395,1.03313322,3307.8,3307.1,1.21954428]
[1768569677697,0.00310401,3308.0,3307.1,1.22190606]
[1768569677992,1.03304307,3307.9,3307.5,1.44003611]
[1768569678196,1.21954428,3308.9,3307.6,0.22049183]
[1768569679495,0.00312163,3308.9,3307.7,1.21954428]
[1768569679695,0.00312163,3308.9,3307.7,1.44003611]
[1768569680789,0.00312163,3308.9,3307.8,0.22049183]
[1768569680991,0.00312163,3308.9,3308.3,1.21954428]
[1768569681898,0.00312163,3308.9,3308.3,1.45098635]
[1768569682102,0.00312163,3308.9,3308.4,0.23144207]
[1768569682502,0.00312163,3308.9,3307.8,0.1512]
[1768569682503,0.15111,3309.9,3308.5,1.45098635]
[1768569682801,1.21954428,3309.9,3308.7,0.23144207]
[1768569683592,1.2225109,3309.9,3308.7,0.23144207]
[1768569683999,1.21954428,3309.7,3308.7,0.23144207]
[1768569684308,1.21954428,3309.7,3308.3,1.45098635]
[1768569685006,1.21954428,3309.7,3308.4,0.23144207]
[1768569687305,0.00296662,3309.9,3308.4,0.23144207]
[1768569688811,0.00296662,3309.9,3308.7,0.23447205]
[1768569689113,0.00296662,3309.9,3308.9,0.23447205]
[1768569698733,6.49,3311.1,3309.1,0.38561205]
[1768569698911,1.02753886,3311.0,3309.3,0.23447205]
[1768569699215,1.02753886,3310.9,3309.3,0.23447205]
[1768569699418,6.64105,3311.2,3309.3,0.23447205]
[1768569699419,1.02753886,3310.8,3309.3,0.23447205]
[1768569699614,1.02753886,3310.7,3309.3,0.23447205]
[1768569699817,1.02753886,3310.6,3309.3,0.23447205]
[1768569700118,0.00262187,3310.8,3309.3,0.23447205]
[1768569700416,1.02781656,3310.7,3309.3,0.23447205]
[1768569700613,1.02781656,3310.6,3309.3,0.23447205]
[1768569700815,0.00262187,3310.8,3309.3,0.23447205]
[1768569701009,1.02319961,3310.7,3309.3,0.23447205]
[1768569701217,1.02319961,3310.6,3309.3,0.23447205]
[1768569701416,1.02319961,3310.5,3309.3,0.23447205]
[1768569701620,1.02319961,3310.4,3309.3,0.23447205]
[1768569701819,0.00262187,3310.8,3309.3,0.23447205]
[1768569702118,1.02341088,3310.7,3309.3,0.23447205]
[1768569702319,1.02341088,3310.6,3309.3,0.23447205]
[1768569702516,1.02341088,3310.5,3309.3,0.23447205]
[1768569702710,1.02341088,3310.4,3309.3,0.23447205]
[1768569702905,1.02341088,3310.3,3309.3,0.23447205]
[1768569703109,0.00262187,3310.8,3309.3,0.23447205]
[1768569703320,1.024375,3310.7,3309.3,0.23447205]
[1768569703520,1.024375,3310.6,3309.3,0.23447205]
[1768569703723,1.024375,3310.5,3309.3,0.23447205]
[1768569704020,1.024375,3310.4,3309.3,0.23447205]
[1768569704210,1.024375,3310.3,3309.3,0.23447205]
[1768569704418,1.024375,3310.2,3309.3,0.23447205]
[1768569704618,0.00262187,3310.8,3309.3,0.23447205]
[1768569704921,1.02506428,3310.7,3309.3,0.23447205]
[1768569705122,1.02506428,3310.6,3309.3,0.23447205]
[1768569705323,1.02506428,3310.5,3309.3,0.23447205]
[1768569705525,1.02506428,3310.4,3309.3,0.23447205]
[1768569705723,1.02506428,3310.3,3309.3,0.23447205]
[1768569706021,1.02506428,3310.2,3309.3,0.23447205]
[1768569706230,1.02506428,3310.1,3309.3,0.23447205]
[1768569706423,1.02506428,3310.0,3309.3,0.23447205]
[1768569706727,2.17294135,3310.8,3309.3,0.23447205]
[1768569707023,1.02703774,3310.7,3309.3,0.23447205]
[1768569707223,1.02703774,3310.6,3309.3,0.23447205]
[1768569707421,1.02703774,3310.5,3309.3,0.23447205]
[1768569709224,4.41537359,3310.6,3309.3,0.23447205]
[1768569709425,1.02703774,3310.5,3309.3,0.23447205]
[1768569709823,1.02703774,3310.5,3309.5,0.23447205]
[1768569710127,1.02703774,3310.5,3309.8,1.45248842]
[1768569710321,2.17294135,3310.8,3310.2,1.45248842]
[1768569710322,0.00262187,3310.8,3310.2,1.45248842]
[1768569710817,0.00262187,3310.8,3310.3,0.23447205]
[1768569711013,0.00262187,3310.8,3309.8,0.23447205]
[1768569716227,2.17031948,3311.3,3309.8,0.23447205]
[1768569716735,2.17031948,3311.4,3309.9,0.25971121]
[1768569717231,0.00259835,3311.4,3309.9,0.25971121]
[1768569722435,1.01630796,3311.3,3309.9,0.25971121]
[1768569722637,1.01630796,3311.2,3309.9,0.25971121]
[1768569722838,1.01630796,3311.1,3309.9,0.25971121]
[1768569723040,1.01630796,3311.0,3309.9,0.25971121]
[1768569723340,1.01630796,3310.9,3309.9,0.25971121]
[1768569723639,1.01630796,3310.8,3309.9,0.25971121]
[1768569723937,1.01630796,3310.7,3309.9,0.25971121]
[1768569724133,1.01630796,3310.6,3309.9,0.25971121]
[1768569724328,0.00259835,3311.4,3309.9,0.25971121]
[1768569724531,1.01650197,3311.3,3309.9,0.25971121]
[1768569724732,1.01650197,3311.2,3309.9,0.25971121]
[1768569725026,1.01650197,3311.1,3309.9,0.25971121]
[1768569725341,1.01650197,3311.0,3309.9,0.25971121]
[1768569725637,1.01650197,3310.9,3309.9,0.25971121]
[1768569725837,1.01650197,3310.8,3309.9,0.25971121]
[1768569726032,1.01650197,3310.7,3309.9,0.25971121]
[1768569726232,1.01650197,3310.6,3309.9,0.25971121]
[1768569726434,0.00259835,3311.4,3309.9,0.25971121]
[1768569726633,1.01725906,3311.3,3309.9,0.25971121]
[1768569726934,1.01725906,3311.2,3309.9,0.25971121]
[1768569727134,1.01725906,3311.1,3309.9,0.25971121]
[1768569727336,1.01725906,3311.0,3309.9,0.25971121]
[1768569727541,1.01725906,3310.9,3309.9,0.25971121]
[1768569727841,0.00259835,3311.4,3309.9,0.25971121]
[1768569728034,1.01740994,3311.3,3309.9,0.25971121]
[1768569728235,1.01740994,3311.2,3309.9,0.25971121]
[1768569728441,1.01740994,3311.1,3309.9,0.25971121]
[1768569728642,1.01740994,3311.0,3309.9,0.25971121]
[1768569728842,1.01740994,3310.9,3309.9,0.25971121]
[1768569729043,1.01740994,3310.8,3309.9,0.25971121]
[1768569729339,0.5003129,3310.7,3309.9,0.25971121]
[1768569729538,0.00259835,3311.4,3309.9,0.25971121]
[1768569738466,0.25783437,3311.4,3309.7,40.8]
[1768569738665,1.47251549,3311.2,3309.7,40.8]
[1768569740060,0.15363835,3311.4,3309.5,0.00251167]
[1768569740061,1.47251549,3310.8,3309.5,0.00251167]
[1768569741368,1.00841732,3310.7,3309.5,0.00251167]
[1768569741568,1.00841732,3310.6,3309.5,0.00251167]
[1768569741870,1.00841732,3310.5,3309.5,0.00251167]
[1768569742069,1.00841732,3310.4,3309.5,0.00251167]
[1768569742370,1.00841732,3310.3,3309.5,0.00251167]
[1768569742563,1.00841732,3310.2,3309.5,0.00251167]
[1768569742766,1.0082274,3310.1,3309.5,0.00251167]
[1768569743080,0.26631003,3310.7,3309.5,0.00251167]
[1768569743268,0.26631003,3310.5,3309.5,0.00251167]
[1768569743562,1.00795455,3310.4,3309.5,0.00251167]
[1768569743759,0.26631003,3310.5,3309.5,0.00251167]
[1768569743760,1.00795455,3310.3,3309.5,0.00251167]
[1768569743960,1.00795455,3310.2,3309.5,0.00251167]
[1768569744162,1.00795455,3310.1,3309.5,0.00251167]
[1768569744470,0.26631003,3310.5,3309.5,0.00251167]
[1768569744670,1.00771226,3310.4,3309.5,0.00251167]
[1768569744874,1.00771226,3310.3,3309.5,0.00251167]
[1768569745066,1.00771226,3310.2,3309.5,0.00251167]
[1768569745365,1.00771226,3310.1,3309.5,0.00251167]
[1768569745674,0.26631003,3310.5,3309.5,0.00251167]
[1768569745858,1.00751295,3310.4,3309.5,0.00251167]
[1768569746157,1.00751295,3310.3,3309.5,0.00251167]
[1768569746356,1.00751295,3310.2,3309.5,0.00251167]
[1768569746561,0.26631003,3310.5,3309.5,0.00251167]
[1768569746761,1.00732117,3310.4,3309.5,0.00251167]
[1768569746965,1.00732117,3310.3,3309.5,0.00251167]
[1768569747172,1.00732117,3310.2,3309.5,0.00251167]
[1768569747373,0.26631003,3310.5,3309.5,0.00251167]
[1768569747671,1.00717045,3310.4,3309.5,0.00251167]
[1768569747870,1.00717045,3310.3,3309.5,0.00251167]
[1768569748064,1.00717045,3310.2,3309.5,0.00251167]
[1768569748272,0.26631003,3310.5,3309.5,0.00251167]
[1768569748465,1.00705525,3310.4,3309.5,0.00251167]
[1768569748666,1.00705525,3310.3,3309.5,0.00251167]
[1768569748869,1.00705525,3310.2,3309.5,0.00251167]
[1768569749068,0.26631003,3310.5,3309.5,0.00251167]
[1768569749376,1.00705647,3310.4,3309.5,0.00251167]
[1768569749574,1.00705647,3310.3,3309.5,0.00251167]
[1768569749773,1.27741427,3310.2,3308.8,0.15116]
[1768569749973,1.00705647,3310.1,3308.8,0.15116]
[1768569750173,1.00705647,3310.0,3308.8,0.15116]
[1768569750374,0.2703578,3310.2,3308.8,0.15116]
[1768569750568,1.00667772,3310.1,3308.8,0.15116]
[1768569750775,0.2703578,3310.2,3308.8,0.00293109]
[1768569750776,1.00667772,3310.0,3308.8,0.00293109]
[1768569750976,0.2703578,3310.2,3308.8,0.00293109]
[1768569751181,1.00667872,3310.1,3308.8,0.00293109]
[1768569751480,1.00667872,3310.0,3308.8,0.00293109]
[1768569751778,0.2703578,3310.2,3308.8,0.00293109]
[1768569751978,1.00650867,3310.1,3308.8,0.00293109]
[1768569752163,1.00650867,3310.0,3308.8,0.00293109]
[1768569752368,0.2703578,3310.2,3308.8,0.00293109]
[1768569752568,1.00637,3310.1,3308.8,0.00293109]
[1768569752777,1.00637,3310.0,3308.8,0.00293109]
[1768569752975,0.2703578,3310.2,3308.8,0.00293109]
[1768569753180,1.00636999,3310.1,3308.8,0.00293109]
[1768569753383,1.00636999,3310.0,3308.8,0.00293109]
[1768569753582,0.2703578,3310.2,3308.8,0.00293109]
[1768569753783,1.00626155,3310.1,3308.8,0.00293109]
[1768569754081,1.00626155,3310.0,3308.8,0.00293109]
[1768569754279,0.2703578,3310.2,3308.8,0.00293109]
[1768569754482,1.00613398,3310.1,3308.8,0.00293109]
[1768569754682,1.00613398,3310.0,3308.8,0.00293109]
[1768569754880,0.2703578,3310.2,3308.8,0.00293109]
[1768569755085,1.00613404,3310.1,3308.8,0.00293109]
[1768569755381,1.00613404,3310.0,3308.8,0.00293109]
[1768569755577,0.2703578,3310.2,3308.8,0.00293109]
[1768569755775,1.00605814,3310.1,3308.8,0.00293109]
[1768569755975,1.00605814,3310.0,3308.8,0.00293109]
[1768569756174,0.2703578,3310.2,3308.8,0.00293109]
[1768569756382,1.00600499,3310.1,3308.8,0.00293109]
[1768569756581,1.00600499,3310.0,3308.8,0.00293109]
[1768569756784,0.2703578,3310.2,3308.8,0.00293109]
[1768569756984,1.00600598,3310.1,3308.8,0.00293109]
[1768569757181,1.00600598,3310.0,3308.8,0.00293109]
[1768569757384,0.2703578,3310.2,3308.8,0.00293109]
[1768569757576,1.00597655,3310.1,3308.8,0.00293109]
[1768569757775,1.00597655,3310.0,3308.8,0.00293109]
[1768569757981,0.2703578,3310.2,3308.8,0.00293109]
[1768569758181,1.00597746,3310.1,3308.8,0.00293109]
[1768569758486,1.00597746,3310.0,3308.8,0.00293109]
[1768569758783,0.2703578,3310.2,3308.8,0.00293109]
[1768569758984,1.0059697,3310.1,3308.8,0.00293109]
[1768569759185,1.0059697,3310.0,3308.8,0.00293109]
[1768569759387,0.2703578,3310.2,3308.8,0.00293109]
[1768569759586,1.27635172,3310.1,3308.8,0.00293109]
[1768569759787,1.00599392,3310.0,3308.8,0.00293109]
[1768569760687,1.27635172,3310.0,3308.8,0.00293109]
[1768569760884,0.2703578,3310.0,3308.8,0.00293109]
[1768569762086,0.2703578,3309.8,3308.8,0.00293109]
[1768569762387,0.2703578,3309.6,3308.8,0.00293109]
[1768569762691,0.2703578,3309.6,3308.0,2.369]
[1768569762891,0.2703578,3309.6,3308.1,40.8]
[1768569763385,1.0052509,3309.5,3308.1,40.8]
[1768569763594,0.2703578,3309.6,3308.1,40.80286083]
[1768569763783,1.00525174,3309.5,3308.1,40.80286083]
[1768569764089,0.2703578,3309.6,3308.1,40.80286083]
[1768569764292,1.00531186,3309.5,3308.1,40.80286083]
[1768569764492,0.2703578,3309.6,3308.1,40.80286083]
[1768569764694,1.00531118,3309.5,3308.1,40.80286083]
[1768569764994,0.2703578,3309.6,3308.1,40.80286083]
[1768569765192,1.0053127,3309.5,3308.1,40.80286083]
[1768569765390,0.2703578,3309.6,3308.1,40.80286083]
[1768569765590,1.00543882,3309.5,3308.1,40.80286083]
[1768569765792,0.2703578,3309.6,3308.1,40.80286083]
[1768569766090,1.00543915,3309.5,3308.1,40.80286083]
[1768569766391,0.2703578,3309.6,3308.1,40.80286083]
[1768569766592,1.00563451,3309.5,3308.1,40.80286083]
[1768569766893,0.2703578,3309.6,3308.1,40.80286083]
[1768569767091,1.00563461,3309.5,3308.1,40.80286083]
[1768569767394,0.2703578,3309.6,3308.1,40.80286083]
[1768569767594,1.00591186,3309.5,3308.1,40.80286083]
[1768569767795,0.2703578,3309.6,3308.1,40.80286083]
[1768569767986,1.0059119,3309.5,3308.1,40.80286083]
[1768569768188,1.0062961,3309.4,3308.1,40.80286083]
[1768569768396,0.2703578,3309.6,3308.1,40.80286083]
[1768569768696,1.00629609,3309.5,3308.1,40.80286083]
[1768569768895,1.00629609,3309.4,3308.1,40.80286083]
[1768569769085,0.2703578,3309.6,3308.1,40.80286083]
[1768569769284,1.00623003,3309.5,3308.1,40.80286083]
[1768569769486,1.00623003,3309.4,3308.1,40.80286083]
[1768569769698,0.2703578,3309.6,3308.1,40.80286083]
[1768569769888,1.00649959,3309.5,3308.1,40.80286083]
[1768569770089,1.00649959,3309.4,3308.2,0.26764613]
[1768569770289,0.2703578,3310.0,3308.4,0.26764613]
[1768569770597,1.00653522,3309.9,3308.4,0.26764613]
[1768569770897,1.00653522,3309.8,3308.5,0.26764613]
[1768569771098,1.00653522,3309.7,3308.5,0.26764613]
[1768569771291,1.00653522,3309.6,3308.5,0.26764613]
[1768569771490,0.28179444,3310.4,3308.7,0.28409765]
[1768569771692,0.28179444,3310.4,3308.7,4.67909765]
[1768569776404,0.28179444,3310.4,3308.7,45.195]
[1768569779303,0.28179444,3310.4,3308.8,4.406]
[1768569779601,0.28179444,3310.4,3308.8,4.407]
[1768569781310,1.21841686,3309.9,3308.8,4.407]
[1768569781495,0.28179444,3310.0,3308.8,4.407]
[1768569781696,1.5002113,3309.8,3308.7,40.8]
[1768569781905,1.21841686,3309.6,3308.6,4.56217]
[1768569782302,1.21841686,3309.6,3308.6,40.95117]
[1768569782497,1.21841686,3309.6,3308.3,1.21841686]
[1768569782695,0.28179444,3309.5,3308.4,2.975]
[1768569783105,0.28179444,3309.5,3308.4,43.775]
[1768569783499,1.00189719,3309.4,3308.4,43.775]
[1768569783705,0.28179444,3309.5,3308.4,43.775]
[1768569783899,1.00189715,3309.4,3308.4,43.775]
[1768569784097,0.28179444,3309.5,3308.4,43.775]
[1768569784297,1.00187817,3309.4,3308.4,43.775]
[1768569784498,0.28179444,3309.5,3308.4,43.775]
[1768569784804,1.00187621,3309.4,3308.4,43.775]
[1768569785014,0.28179444,3309.5,3308.4,44.99341686]
[1768569785310,1.00187986,3309.4,3308.6,1.21841686]
[1768569785605,2.45211392,3310.4,3309.2,1.21841686]
[1768569785811,1.00201531,3310.3,3309.2,1.21841686]
[1768569786104,1.00201531,3310.2,3309.2,1.21841686]
[1768569786311,1.00201531,3310.1,3309.2,1.21841686]
[1768569786511,1.00201531,3310.0,3309.2,1.21841686]
[1768569786712,1.00201531,3309.9,3309.2,1.21841686]
[1768569786912,0.28179444,3310.4,3309.2,1.21841686]
[1768569787209,2.49504101,3310.3,3309.0,1.21841686]
[1768569787506,0.99482971,3310.2,3309.0,1.21841686]
[1768569787706,0.99482971,3310.1,3309.0,1.21841686]
[1768569787909,0.99482971,3310.0,3309.0,1.21841686]
[1768569788109,0.99482971,3309.9,3309.0,1.21841686]
[1768569788309,1.5002113,3310.3,3309.0,1.21841686]
[1768569788509,0.99480899,3310.2,3309.0,1.21841686]
[1768569788712,0.99480899,3310.1,3309.0,1.21841686]
[1768569788913,0.99480899,3310.0,3309.0,1.21841686]
[1768569789118,0.99480899,3309.9,3309.0,1.21841686]
[1768569789414,1.5002113,3310.3,3309.0,1.21841686]
[1768569789713,0.99479917,3310.2,3309.0,1.21841686]
[1768569789913,0.99479917,3310.1,3309.0,1.21841686]
[1768569790114,0.99479917,3310.0,3309.0,1.21841686]
[1768569790305,0.99479917,3309.9,3309.0,1.21841686]
[1768569790507,1.5002113,3310.3,3309.0,1.21841686]
[1768569790709,0.99270828,3310.2,3309.0,1.21841686]
[1768569790914,0.99270828,3310.1,3309.0,1.21841686]
[1768569791215,0.99270828,3310.0,3309.0,1.21841686]
[1768569791519,0.99270828,3309.9,3309.0,1.21841686]
[1768569791711,1.5002113,3310.3,3309.0,1.21841686]
[1768569791918,0.9926978,3310.2,3309.0,1.21841686]
[1768569792114,0.9926978,3310.1,3308.9,1.21841686]
[1768569792303,0.9926978,3310.0,3308.9,1.21841686]
[1768569792518,0.9926978,3309.9,3308.9,1.21841686]
[1768569792815,1.21841686,3310.1,3308.9,1.21841686]
[1768569793018,0.99267311,3310.0,3308.7,1.36957686]
[1768569793219,0.99267311,3309.9,3308.7,1.36957686]
[1768569793421,0.28179444,3310.0,3308.7,1.36957686]
[1768569793623,0.9926868,3309.9,3308.7,1.36957686]
[1768569793918,0.28179444,3310.0,3308.7,1.36957686]
[1768569794120,0.99268449,3309.9,3308.7,1.36957686]
[1768569794311,0.28179444,3310.0,3308.7,5.78857686]
[1768569794516,2.21115099,3309.9,3308.7,4.57016]
[1768569794715,1.21841686,3309.9,3308.7,0.15116]
[1768569795021,0.28179444,3310.0,3308.7,5.78857686]
[1768569795219,0.99273309,3309.9,3308.7,5.78857686]
[1768569795418,0.28179444,3310.0,3308.7,5.78857686]
[1768569795613,2.21120344,3309.9,3308.7,4.57016]
[1768569795918,0.99278658,3309.8,3308.7,4.57016]
[1768569796216,0.99281845,3309.7,3308.7,0.15116]
[1768569796426,0.99280613,3309.6,3308.5,4.42]
[1768569796721,1.5002113,3309.7,3308.4,45.221]
[1768569796917,0.99279392,3309.6,3308.4,45.221]
[1768569797110,1.5002113,3309.7,3308.4,45.221]
[1768569797311,0.99286065,3309.6,3308.4,45.221]
[1768569797521,0.99286065,3309.5,3308.4,45.221]
[1768569797715,1.5002113,3309.7,3308.4,45.221]
[1768569797911,0.99286445,3309.6,3308.4,45.221]
[1768569798111,0.99286445,3309.5,3308.4,45.221]
[1768569798306,0.28179444,3309.7,3308.4,45.221]
[1768569798512,0.99293852,3309.6,3308.4,45.221]
[1768569798712,0.99293852,3309.5,3308.4,45.221]
[1768569798920,0.28179444,3309.7,3308.4,45.221]
[1768569799119,0.99293787,3309.6,3308.4,45.221]
[1768569799419,0.99293787,3309.5,3308.4,45.221]
[1768569799614,0.28179444,3309.7,3308.4,45.221]
[1768569799807,0.99300032,3309.6,3308.4,45.221]
[1768569800122,0.99300032,3309.5,3308.4,45.221]
[1768569800311,0.28179444,3309.7,3308.4,45.221]
[1768569800512,0.99307798,3309.6,3308.4,45.221]
[1768569800813,0.99307798,3309.5,3308.5,1.21841686]
[1768569801014,0.28179444,3309.7,3308.5,1.21841686]
[1768569801318,0.99307715,3309.6,3308.5,1.21841686]
[1768569801624,0.99307715,3309.5,3308.5,1.21841686]
[1768569801820,1.54597604,3310.1,3308.7,1.21841686]
[1768569802119,0.99307903,3310.0,3308.7,1.21841686]
[1768569802309,0.99307903,3309.9,3308.7,1.21841686]
[1768569802510,0.99307903,3309.8,3308.7,1.21841686]
[1768569802818,0.99307903,3309.7,3308.8,1.21841686]
[1768569803118,0.99307903,3309.6,3308.8,1.21841686]
[1768569803318,1.54597604,3310.1,3308.8,1.21841686]
[1768569803516,0.99305298,3310.0,3309.0,1.21841686]
[1768569803826,0.99305298,3309.9,3309.0,1.21841686]
[1768569804128,0.99305298,3309.8,3309.0,1.21841686]
[1768569804420,0.99305298,3309.7,3309.0,1.21841686]
[1768569804722,1.69706604,3310.4,3309.0,1.21841686]
[1768569805020,0.99312169,3310.3,3309.0,1.21841686]
[1768569805322,0.99312169,3310.2,3309.0,1.21841686]
[1768569805513,0.99312169,3310.1,3309.0,1.21841686]
[1768569805714,0.99312169,3310.0,3309.0,1.21841686]
[1768569805916,0.99312169,3309.9,3309.0,1.21841686]
[1768569806222,1.54597604,3310.4,3309.0,1.21841686]
[1768569806524,0.99324298,3310.3,3309.4,1.21841686]
[1768569806732,0.99324298,3310.2,3309.4,1.21841686]
[1768569806908,0.99324298,3310.2,3309.1,4.435]
[1768569806909,0.99324298,3310.1,3309.2,1.21841686]
[1768569807225,0.32755918,3310.8,3309.2,1.21841686]
[1768569807416,2.21160796,3310.7,3309.2,1.21841686]
[1768569807618,0.9931911,3310.6,3309.2,1.21841686]
[1768569808418,0.9931911,3310.6,3309.4,1.21841686]
[1768569809823,1.21841686,3310.3,3309.1,4.435]
[1768569810125,0.9931911,3310.2,3309.1,4.435]
[1768569810322,0.9931911,3310.1,3309.1,4.435]
[1768569810523,1.21841686,3309.9,3309.0,0.15115]
[1768569810826,1.55240782,3309.9,3308.6,4.43]
[1768569811026,0.33399096,3309.9,3308.6,4.43]
[1768569811325,0.33399096,3309.9,3308.7,1.21841686]
[1768569814426,0.33399096,3309.9,3308.5,1.36958686]
[1768569814427,1.55240782,3309.9,3308.5,1.36958686]
[1768569814624,0.33399096,3309.8,3308.5,1.36958686]
[1768569815529,2.21141974,3309.7,3308.5,0.15117]
[1768569815720,1.21841686,3309.7,3308.5,0.15117]
[1768569817730,1.55240782,3309.7,3308.5,0.15117]
[1768569817924,0.33399096,3309.6,3308.5,0.15117]
[1768569819330,1.55240782,3309.5,3308.5,0.15117]
[1768569825334,0.33399096,3309.5,3308.5,0.15117]
[1768569825635,1.21841686,3309.7,3308.5,0.15117]
[1768569825827,0.99265875,3309.6,3308.5,0.15117]
[1768569826026,1.55240782,3309.7,3308.5,0.15117]
[1768569826230,0.99265761,3309.6,3308.5,0.15117]
[1768569826428,1.55240782,3309.7,3308.5,0.15117]
[1768569826634,0.99262981,3309.6,3308.5,0.15117]
[1768569826836,1.55240782,3309.7,3308.5,0.15117]